fUST/lending_fUST_20250505
["ID","MTS","AMOUNT","RATE_DAILY","PERIOD"]
[359928718,1746431072655,-151.0,0.00023992,2]
[359928719,1746431076601,-198.8813985,0.00023991,2]
[359928720,1746431082274,-153.31977512,0.00023991,2]
[359928721,1746431085976,-148.205189,0.00023991,2]
[359928722,1746431086016,-386.1507914,0.00023992,2]
[359928723,1746431092104,-709.43580172,0.00023992,2]
[359928724,1746431096017,-172.89296064,0.00023992,2]
[359928725,1746431098928,-529.44408862,0.00023992,2]
[359928726,1746431104346,-161.19478468,0.00023991,2]
[359928727,1746431108063,-138.80521532,0.00023991,2]
[359928728,1746431108104,-28.24507975,0.00023992,2]
[359928729,1746431113115,-263.96280926,0.00023991,2]
[359928730,1746431116893,-175.6895645,0.00023991,2]
[359928731,1746431120098,-60.34762624,0.00023991,2]
[359928732,1746431120146,-100.81707552,0.00023991,2]
[359928733,1746431125712,-259.40174932,0.00023967,2]
[359928735,1746431230117,-170.509308,0.00023547,2]
[359928736,1746431230138,-391.96978096,0.00023895,2]
[359928737,1746431230160,-162.45898286,0.00023967,2]
[359928738,1746431238098,-3359.33914692,0.00023967,2]
[359928739,1746431238120,-300.0,0.00023989,2]
[359928740,1746431238144,-500.0,0.0002399,2]
[359928741,1746431238174,-500.0,0.0002399,2]
[359928742,1746431238202,-500.0,0.0002399,2]
[359928743,1746431238223,-500.0,0.0002399,2]
[359928744,1746431238251,-500.0,0.0002399,2]
[359928745,1746431238278,-500.0,0.0002399,2]
[359928746,1746431238306,-500.0,0.0002399,2]
[359928747,1746431238335,-500.0,0.0002399,2]
[359928748,1746431238362,-500.0,0.0002399,2]
[359928749,1746431238392,-500.0,0.0002399,2]
[359928750,1746431238420,-500.0,0.0002399,2]
[359928751,1746431238447,-500.0,0.0002399,2]
[359928752,1746431238475,-500.0,0.0002399,2]
[359928753,1746431238503,-500.0,0.0002399,2]
[359928754,1746431238530,-500.0,0.0002399,2]
[359928755,1746431238557,-500.0,0.0002399,2]
[359928756,1746431238586,-500.0,0.0002399,2]
[359928757,1746431238613,-500.0,0.0002399,2]
[359928758,1746431238642,-500.0,0.0002399,2]
[359928759,1746431238670,-500.0,0.0002399,2]
[359928760,1746431238697,-150.42508376,0.0002399,2]
[359928761,1746431254141,-349.57491624,0.0002399,2]
[359928762,1746431254171,-500.0,0.0002399,2]
[359928763,1746431254202,-500.0,0.0002399,2]
[359928764,1746431254230,-131.54971629,0.0002399,2]
[359928766,1746431303066,-161.0,0.00023083,2]
[359928768,1746431349093,-122.1510651,0.00023083,2]
[359928769,1746431349114,-280.92420128,0.0002379,2]
[359928770,1746431349134,-182.08685211,0.0002389,2]
[359928771,1746431349155,-300.0,0.0002399,2]
[359928772,1746431349178,-50407.81387954,0.0002399,2]
[359928773,1746431357108,-49592.18612046,0.0002399,2]
[359928774,1746431357131,-1099.18292448,0.00023991,2]
[359928775,1746431357153,-300.0,0.00023991,2]
[359928776,1746431357187,-500.0,0.00023991,2]
[359928777,1746431357218,-500.0,0.00023991,2]
[359928778,1746431357245,-500.0,0.00023991,2]
[359928779,1746431357274,-495.47343122,0.00023991,2]
[359928780,1746431357302,-500.0,0.00023991,2]
[359928781,1746431357329,-500.0,0.00023991,2]
[359928782,1746431357355,-500.0,0.00023991,2]
[359928783,1746431357384,-500.0,0.00023991,2]
[359928784,1746431357413,-500.0,0.00023991,2]
[359928785,1746431357441,-249.99999999,0.00023991,2]
[359928786,1746431357470,-500.0,0.00023991,2]
[359928787,1746431357493,-21984.11827163,0.00023992,2]
[359928788,1746431357515,-151.0,0.00023995,2]
[359928789,1746431357537,-170.26096161,0.00023995,2]
[359928790,1746431357557,-1332.17317098,0.00023995,2]
[359928791,1746431357578,-151.17,0.00024434,3]
[359928792,1746431357597,-453.55,0.00024434,3]
[359928793,1746431357618,-391.83479455,0.00024443,2]
[359928794,1746431357637,-565.59278555,0.00024443,2]
[359928795,1746431357657,-252.26125381,0.00024443,2]
[359928796,1746431357676,-105115.39644458,0.00024444,3]
[359928797,1746431357696,-182.23035355,0.00024444,3]
[359928798,1746431357715,-583.07572186,0.000248,2]
[359928799,1746431357738,-701.82093074,0.0002489,2]
[359928800,1746431357761,-1209.36,0.0002489,3]
[359928801,1746431357782,-604.68,0.0002489,3]
[359928802,1746431357803,-302.34,0.0002489,3]
[359928803,1746431357823,-1373.12874587,0.000249,2]
[359928804,1746431357845,-22683.0278673,0.000249,2]
[359928805,1746431357866,-500.0,0.00024973,2]
[359928806,1746431357886,-500.0,0.00024973,2]
[359928807,1746431357906,-500.0,0.00024973,2]
[359928808,1746431357926,-208.41893146,0.00024973,2]
[359928809,1746431357946,-500.0,0.00024973,2]
[359928810,1746431357966,-500.0,0.00024973,2]
[359928811,1746431357986,-399.27524861,0.00024973,2]
[359928812,1746431358007,-500.0,0.00024973,2]
[359928813,1746431358027,-500.0,0.00024973,2]
[359928814,1746431358048,-500.0,0.00024973,2]
[359928815,1746431358069,-500.0,0.00024973,2]
[359928816,1746431358089,-500.0,0.00024973,2]
[359928817,1746431358110,-90732.1114691,0.0002498,2]
[359928818,1746431358132,-2332.30288744,0.0002498,2]
[359928819,1746431358153,-113415.139336,0.0002499,2]
[359928820,1746431358173,-2915.3786093,0.0002499,2]
[359928821,1746431358194,-133226.63026628,0.00025,2]
[359928822,1746431368118,-55318.95040525,0.00025,2]
[359928823,1746431371104,-20004.50451586,0.00025,2]
[359928852,1746431432228,-1821.75090493,0.000229,2]
[359928854,1746431432238,-160.0,0.00024444,3]
[359928856,1746431432247,-300.0,0.00024999,2]
[359928858,1746431432257,-785.0,0.00024999,2]
[359928860,1746431432266,-8750.61524337,0.00025,2]
[359928862,1746431432277,-4237.56,0.00025,2]
[359928884,1746431437591,10000.0,0.00018101,2]
[359928927,1746431438169,-582.83038125,0.00024999,2]
[359928929,1746431438180,-2643.12806369,0.00025,2]
[359928931,1746431438189,-850.39640164,0.00025,2]
[359928933,1746431438201,-528.78757581,0.00025,2]
[359928936,1746431438213,-255.81602255,0.00025,2]
[359928938,1746431438223,-246.061066,0.00025,2]
[359928940,1746431438234,-1190.938934,0.00025,2]
[359928942,1746431438244,-4315.65170529,0.00025,2]
[359928970,1746431438506,-821.1406638,0.00025,2]
[359928972,1746431438518,-1179.20763091,0.00025,2]
[359928974,1746431438527,-151.0,0.00025,2]
[359928976,1746431438537,-531.09463304,0.0002558,2]
[359928978,1746431438546,-22683.0278673,0.0002568,2]
[359928980,1746431438555,-583.07572186,0.0002568,2]
[359928982,1746431438565,-395.91494988,0.00025699,2]
[359928984,1746431438574,-176.58287767,0.00025699,2]
[359928986,1746431438583,-274.28435619,0.00025699,2]
[359928988,1746431438592,-749.37037288,0.000257,13]
[359928990,1746431438602,-749.37037271,0.000257,13]
[359928992,1746431438611,-302.34,0.00025804,3]
[359928994,1746431438620,-500.0,0.00026,30]
[359928996,1746431438630,-749.37037271,0.00026003,14]
[359928998,1746431438639,-2418.72,0.0002626,3]
[359929000,1746431438648,-1209.36,0.0002626,3]
[359929002,1746431438657,-604.68,0.0002626,3]
[359929004,1746431438667,-749.37037271,0.00026555,15]
[359929006,1746431438676,-420.0,0.00027082,2]
[359929009,1746431438685,-749.37037271,0.00027107,16]
[359929011,1746431438695,-500.0,0.0002725,2]
[359929013,1746431438705,-500.0,0.0002725,2]
[359929015,1746431438714,-500.0,0.0002725,2]
[359929017,1746431438722,-362.296813,0.00027356,2]
[359929019,1746431438731,-701.82093073,0.00027393,2]
[359929020,1746431438741,-443.509294,0.00027397,2]
[359929022,1746431438750,-749.37037271,0.00027659,17]
[359929025,1746431438760,-531.09463301,0.00027703,2]
[359929027,1746431438769,-1821.75090493,0.000279,2]
[359929029,1746431438779,-170.509308,0.00028113,2]
[359929030,1746431438788,-749.37037271,0.0002821,18]
[359929032,1746431438798,-749.37037271,0.00028762,19]
[359929034,1746431438807,-749.37037271,0.00029314,20]
[359929037,1746431438818,-587.0,0.00029339,2]
[359929039,1746431438827,-288.38037,0.000298,120]
[359929041,1746431438836,-531.09463301,0.00029825,2]
[359929042,1746431438845,-749.37037271,0.00029866,21]
[359929044,1746431438856,-701.82093073,0.00029895,2]
[359929046,1746431438865,-583.07572186,0.0002998,2]
[359929048,1746431438875,-583.07572186,0.0002999,2]
[359929050,1746431438884,-65400.0,0.0003,60]
[359929052,1746431438894,-749.37037271,0.00030417,22]
[359929054,1746431438903,-1000.0,0.00030452,5]
[359929056,1746431438912,-1000.0,0.00030452,2]
[359929058,1746431438921,-1000.0,0.00030452,5]
[359929060,1746431438931,-749.37037271,0.00030969,24]
[359929062,1746431438940,-583.07572186,0.00030973,2]
[359929064,1746431438949,-500.0,0.0003145,5]
[359929067,1746431438960,-500.0,0.0003145,5]
[359929069,1746431438969,-300.2382317,0.0003145,5]
[359929070,1746431438979,-749.37037271,0.00031521,25]
[359929071,1746431438989,-823.0,0.00031784,2]
[359929073,1746431438998,-531.09463301,0.00031948,2]
[359929075,1746431439007,-749.37037271,0.00032072,26]
[359929077,1746431439017,-701.82093073,0.00032398,2]
[359929079,1746431439026,-749.37037271,0.00032624,27]
[359929081,1746431439036,-170.509308,0.0003268,2]
[359929083,1746431439045,-156.36,0.00032719,3]
[359929085,1746431439054,-469.1,0.00032719,3]
[359929087,1746431439063,-1000.0,0.00032729,5]
[359929089,1746431439072,-1000.0,0.00032729,5]
[359929091,1746431439081,-500.0,0.00032729,5]
[359929093,1746431439091,-583.07572186,0.0003289,2]
[359929095,1746431439100,-11428.89,0.000329,30]
[359929097,1746431439109,-5061.5,0.000329,30]
[359929099,1746431439118,-1724.0,0.000329,7]
[359929101,1746431439128,-1677.2,0.000329,30]
[359929103,1746431439137,-182.23035355,0.000329,30]
[359929105,1746431439147,-1821.75090493,0.000329,2]
[359929107,1746431439156,-443.509294,0.00033165,2]
[359929109,1746431439166,-749.37037271,0.00033176,28]
[359929111,1746431439175,-749.37037271,0.00033728,29]
[359929113,1746431439184,-841.77443764,0.00033991,2]
[359929115,1746431439193,-160.0,0.00033991,2]
[359929117,1746431439202,-531.09463301,0.00034071,2]
[359929130,1746431439323,-312.72,0.00034089,3]
[359929133,1746431439340,-749.37037271,0.00034279,30]
[359929135,1746431439350,-151.0,0.000344,15]
[359929137,1746431439359,-1152.0,0.00034433,2]
[359929139,1746431439369,-749.37037271,0.00034831,31]
[359929141,1746431439378,-701.82093073,0.000349,2]
[359929142,1746431439387,-583.07572186,0.0003497,2]
[359929143,1746431439397,-10000.0,0.00035,10]
[359929144,1746431439407,-151.0,0.00035,20]
[359929145,1746431439418,-1724.0,0.00035,7]
[359929146,1746431439428,-182.23035355,0.00035,10]
[359929147,1746431439438,-500.0,0.00035068,4]
[359929148,1746431439448,-508.79403466,0.00035071,2]
[359929149,1746431439458,-583.07572186,0.0003509,2]
[359929150,1746431439468,-5061.5,0.000351,30]
[359929151,1746431439478,-1677.2,0.000352,30]
[359929152,1746431439487,-160.0,0.00035378,2]
[359929153,1746431439497,-182.23035355,0.00035378,2]
[359929154,1746431439507,-160.0,0.00035378,2]
[359929155,1746431439517,-508.79403466,0.00035381,2]
[359929156,1746431439526,-749.37037271,0.00035383,32]
[359929157,1746431439535,-1029.83435527,0.00035386,2]
[359929158,1746431439544,-593.13973276,0.00035386,2]
[359929159,1746431439553,-583.07572186,0.00035461,3]
[359929160,1746431439563,-421.83547488,0.00035471,3]
[359929161,1746431439573,-160.0,0.00035471,3]
[359929162,1746431439582,-160.0,0.00035471,3]
[359929163,1746431439592,-841.77443764,0.00035471,3]
[359929164,1746431439601,-151.0,0.00035471,14]
[359929165,1746431439611,-151.0,0.00035471,14]
[359929166,1746431439620,-151.0,0.00035471,14]
[359929167,1746431439629,-160.0,0.00035476,2]
[359929168,1746431439639,-12607.13495863,0.00035477,2]
[359929169,1746431439648,-421.83547488,0.00035477,2]
[359929170,1746431439657,-10261.921096,0.00035486,2]
[359929171,1746431439667,-11428.89,0.000355,30]
[359929172,1746431439676,-151.0,0.000355,16]
[359929173,1746431439685,-151.0,0.000355,14]
[359929174,1746431439696,-151.0,0.000355,14]
[359929175,1746431439705,-151.0,0.000355,14]
[359929176,1746431439715,-5354.805601,0.000355,2]
[359929177,1746431439724,-5354.805601,0.000355,2]
[359929178,1746431439734,-153.399365,0.000355,14]
[359929179,1746431439745,-1166.15144372,0.00035596,3]
[359929180,1746431439754,-197.0,0.000356,14]
[359929181,1746431439763,-449.91,0.00035616,14]
[359929182,1746431439773,-412.06034992,0.00035616,14]
[359929183,1746431439782,-400.0,0.00035616,14]
[359929184,1746431439791,-400.0,0.00035616,14]
[359929185,1746431439800,-400.0,0.00035616,14]
[359929186,1746431439809,-400.0,0.00035616,14]
[359929187,1746431439818,-278.11550455,0.00035616,14]
[359929188,1746431439827,-503.11370066,0.00035616,14]
[359929189,1746431439836,-400.0,0.00035616,14]
[359929190,1746431439845,-504.00355408,0.00035616,14]
[359929191,1746431439854,-503.74580067,0.00035616,14]
[359929192,1746431439863,-400.0,0.00035616,14]
[359929193,1746431439873,-502.13790813,0.00035616,14]
[359929194,1746431439882,-400.0,0.00035616,14]
[359929195,1746431439890,-400.0,0.00035616,14]
[359929196,1746431439899,-508.31748357,0.00035616,14]
[359929197,1746431439908,-400.0,0.00035616,14]
[359929198,1746431439917,-502.51144267,0.00035616,14]
[359929199,1746431439926,-407.7745803,0.00035616,14]
[359929200,1746431439936,-400.0,0.00035616,14]
[359929201,1746431439945,-400.0,0.00035616,14]
[359929202,1746431439955,-500.0,0.00035616,14]
[359929203,1746431439964,-400.0,0.00035616,14]
[359929204,1746431439973,-400.0,0.00035616,14]
[359929205,1746431439981,-503.1572199,0.00035616,14]
[359929206,1746431439992,-400.0,0.00035616,14]
[359929207,1746431440001,-400.0,0.00035616,14]
[359929208,1746431440011,-506.23838175,0.00035616,14]
[359929209,1746431440020,-400.0,0.00035616,14]
[359929210,1746431440028,-400.0,0.00035616,14]
[359929211,1746431440038,-528.04361022,0.00035616,14]
[359929212,1746431440047,-400.0,0.00035616,14]
[359929213,1746431440057,-400.0,0.00035616,14]
[359929214,1746431440067,-400.0,0.00035616,14]
[359929215,1746431440076,-400.0,0.00035616,14]
[359929216,1746431440086,-178.24387212,0.00035616,14]
[359929217,1746431440095,-400.0,0.00035616,14]
[359929218,1746431440105,-504.59484258,0.00035616,14]
[359929219,1746431440115,-400.0,0.00035616,14]
[359929220,1746431440125,-400.0,0.00035616,14]
[359929221,1746431440134,-400.0,0.00035616,14]
[359929222,1746431440144,-504.36138519,0.00035616,14]
[359929223,1746431440154,-400.0,0.00035616,14]
[359929224,1746431440165,-302.94783816,0.00035616,14]
[359929225,1746431440174,-400.0,0.00035616,14]
[359929226,1746431440184,-400.0,0.00035616,14]
[359929227,1746431440194,-502.79949979,0.00035616,14]
[359929228,1746431440204,-400.0,0.00035616,14]
[359929229,1746431440214,-400.0,0.00035616,14]
[359929230,1746431440223,-400.0,0.00035616,14]
[359929231,1746431440232,-501.06772822,0.00035616,14]
[359929232,1746431440243,-400.0,0.00035616,14]
[359929233,1746431440252,-400.0,0.00035616,14]
[359929234,1746431440262,-400.0,0.00035616,14]
[359929235,1746431440271,-502.66866983,0.00035616,14]
[359929236,1746431440280,-400.0,0.00035616,14]
[359929237,1746431440290,-400.0,0.00035616,14]
[359929238,1746431440299,-400.0,0.00035616,14]
[359929239,1746431440309,-400.0,0.00035616,14]
[359929240,1746431440318,-400.0,0.00035616,14]
[359929241,1746431440328,-400.0,0.00035616,14]
[359929242,1746431440339,-400.0,0.00035616,14]
[359929243,1746431440348,-400.0,0.00035616,14]
[359929244,1746431440357,-501.15568646,0.00035616,14]
[359929245,1746431440365,-400.0,0.00035616,14]
[359929246,1746431440374,-400.0,0.00035616,14]
[359929247,1746431440383,-400.0,0.00035616,14]
[359929249,1746431440392,-505.90057558,0.00035616,14]
[359929251,1746431440401,-400.0,0.00035616,14]
[359929253,1746431440410,-400.0,0.00035616,14]
[359929255,1746431440419,-620.35,0.00035616,14]
[359929256,1746431440428,-400.0,0.00035616,14]
[359929257,1746431440438,-1058.09,0.00035616,14]
[359929258,1746431440447,-400.0,0.00035616,14]
[359929259,1746431440457,-400.0,0.00035616,14]
[359929260,1746431440467,-517.05352719,0.00035616,14]
[359929261,1746431440476,-374.83588766,0.00035616,14]
[359929262,1746431440486,-400.0,0.00035616,14]
[359929263,1746431440496,-230.72638221,0.00035616,14]
[359929264,1746431440506,-400.0,0.00035616,14]
[359929265,1746431440515,-400.0,0.00035616,14]
[359929266,1746431440525,-413.91,0.00035616,14]
[359929267,1746431440535,-400.0,0.00035616,14]
[359929268,1746431440545,-401.17642277,0.00035616,14]
[359929269,1746431440555,-502.219711,0.00035616,14]
[359929270,1746431440565,-502.34280832,0.00035616,14]
[359929271,1746431440575,-234.67663792,0.00035616,14]
[359929272,1746431440584,-186.79082279,0.00035616,14]
[359929273,1746431440593,-400.0,0.00035616,14]
[359929274,1746431440603,-400.0,0.00035616,14]
[359929275,1746431440613,-506.18746173,0.00035616,14]
[359929276,1746431440622,-400.0,0.00035616,14]
[359929277,1746431440632,-400.0,0.00035616,14]
[359929278,1746431440642,-504.4718993,0.00035616,14]
[359929279,1746431440651,-400.0,0.00035616,14]
[359929280,1746431440661,-400.0,0.00035616,14]
[359929281,1746431440671,-403.96761852,0.00035616,14]
[359929282,1746431440681,-304.23529294,0.00035616,14]
[359929283,1746431440690,-204.60255064,0.00035616,14]
[359929284,1746431440699,-400.0,0.00035616,14]
[359929285,1746431440708,-400.0,0.00035616,14]
[359929286,1746431440718,-400.0,0.00035616,14]
[359929287,1746431440728,-400.0,0.00035616,14]
[359929288,1746431440739,-400.0,0.00035616,14]
[359929289,1746431440749,-501.89761919,0.00035616,14]
[359929290,1746431440759,-400.0,0.00035616,14]
[359929291,1746431440768,-400.0,0.00035616,14]
[359929292,1746431440778,-400.0,0.00035616,14]
[359929293,1746431440788,-400.0,0.00035616,14]
[359929294,1746431440798,-400.0,0.00035616,14]
[359929295,1746431440808,-400.0,0.00035616,14]
[359929296,1746431440818,-400.0,0.00035616,14]
[359929297,1746431440827,-400.0,0.00035616,14]
[359929298,1746431440837,-400.0,0.00035616,14]
[359929299,1746431440847,-400.0,0.00035616,14]
[359929300,1746431440857,-400.0,0.00035616,14]
[359929301,1746431440866,-400.0,0.00035616,14]
[359929302,1746431440877,-400.0,0.00035616,14]
[359929303,1746431440887,-507.05883478,0.00035616,14]
[359929304,1746431440897,-400.0,0.00035616,14]
[359929305,1746431440907,-919.39,0.00035616,14]
[359929306,1746431440917,-400.0,0.00035616,14]
[359929307,1746431440927,-400.0,0.00035616,14]
[359929308,1746431440937,-500.91484984,0.00035616,14]
[359929309,1746431440947,-400.0,0.00035616,14]
[359929310,1746431440957,-400.0,0.00035616,14]
[359929311,1746431440967,-400.0,0.00035616,14]
[359929312,1746431440977,-1500.0,0.00035616,30]
[359929313,1746431441072,-511.66541682,0.00035616,14]
[359929314,1746431441082,-400.0,0.00035616,14]
[359929315,1746431441092,-430.77,0.00035616,14]
[359929316,1746431441103,-400.0,0.00035616,14]
[359929317,1746431441113,-567.54,0.00035616,14]
[359929318,1746431441123,-400.0,0.00035616,14]
[359929319,1746431441132,-1065.94,0.00035616,2]
[359929320,1746431441142,-400.0,0.00035616,14]
[359929321,1746431441152,-473.07626619,0.00035616,14]
[359929322,1746431441162,-468.56,0.00035616,14]
[359929323,1746431441172,-400.0,0.00035616,14]
[359929324,1746431441182,-400.0,0.00035616,14]
[359929325,1746431441192,-542.36,0.00035616,14]
[359929326,1746431441201,-400.0,0.00035616,14]
[359929327,1746431441211,-400.0,0.00035616,14]
[359929328,1746431441221,-400.0,0.00035616,14]
[359929329,1746431441230,-400.0,0.00035616,14]
[359929330,1746431441240,-507.19246334,0.00035616,14]
[359929331,1746431441250,-400.0,0.00035616,14]
[359929332,1746431441259,-190.88096192,0.00035616,14]
[359929333,1746431441269,-400.0,0.00035616,14]
[359929334,1746431441279,-1390.66,0.00035616,14]
[359929335,1746431441288,-500.0,0.00035616,14]
[359929336,1746431441299,-247.08818862,0.00035616,14]
[359929337,1746431441309,-402.90109119,0.00035616,14]
[359929338,1746431441318,-400.0,0.00035616,14]
[359929339,1746431441329,-400.0,0.00035616,14]
[359929340,1746431441341,-400.0,0.00035616,14]
[359929341,1746431441351,-156.45039738,0.00035616,14]
[359929342,1746431441360,-400.0,0.00035616,14]
[359929343,1746431441369,-400.0,0.00035616,14]
[359929344,1746431441381,-400.0,0.00035616,14]
[359929345,1746431441391,-400.0,0.00035616,14]
[359929346,1746431441401,-292.41220674,0.00035616,14]
[359929347,1746431441411,-500.0,0.00035616,14]
[359929348,1746431441420,-400.0,0.00035616,14]
[359929349,1746431441430,-400.0,0.00035616,14]
[359929350,1746431441440,-400.0,0.00035616,14]
[359929351,1746431441449,-400.0,0.00035616,14]
[359929352,1746431441460,-500.0,0.00035616,14]
[359929353,1746431441470,-400.0,0.00035616,14]
[359929354,1746431441480,-400.0,0.00035616,14]
[359929355,1746431441490,-400.0,0.00035616,14]
[359929356,1746431441500,-418.95,0.00035616,14]
[359929357,1746431441509,-689.44,0.00035616,14]
[359929358,1746431441520,-400.0,0.00035616,14]
[359929359,1746431441529,-400.0,0.00035616,14]
[359929360,1746431441539,-522.10481605,0.00035616,14]
[359929361,1746431441549,-400.0,0.00035616,14]
[359929362,1746431441559,-400.0,0.00035616,14]
[359929363,1746431441568,-400.0,0.00035616,14]
[359929364,1746431441577,-403.91,0.00035616,14]
[359929365,1746431441586,-400.0,0.00035616,14]
[359929366,1746431441595,-522.29543877,0.00035616,14]
[359929367,1746431441605,-400.0,0.00035616,14]
[359929368,1746431441615,-400.0,0.00035616,14]
[359929369,1746431441625,-2422.87,0.00035616,14]
[359929370,1746431441635,-593.8,0.00035616,14]
[359929371,1746431441644,-400.0,0.00035616,14]
[359929372,1746431441654,-400.0,0.00035616,14]
[359929373,1746431441663,-400.0,0.00035616,14]
[359929374,1746431441673,-412.27648471,0.00035616,14]
[359929375,1746431441682,-400.0,0.00035616,14]
[359929376,1746431441692,-400.0,0.00035616,14]
[359929377,1746431441702,-400.0,0.00035616,14]
[359929378,1746431441711,-400.0,0.00035616,14]
[359929379,1746431441720,-400.0,0.00035616,14]
[359929380,1746431441730,-501.42649316,0.00035616,14]
[359929381,1746431441740,-874.22,0.00035616,14]
[359929382,1746431441750,-400.0,0.00035616,14]
[359929383,1746431441759,-519.25945595,0.00035616,14]
[359929384,1746431441769,-400.0,0.00035616,14]
[359929385,1746431441779,-400.0,0.00035616,14]
[359929386,1746431441788,-400.0,0.00035616,14]
[359929387,1746431441797,-503.31471588,0.00035616,14]
[359929388,1746431441806,-400.0,0.00035616,14]
[359929389,1746431441816,-187.45460401,0.00035616,14]
[359929390,1746431441825,-400.0,0.00035616,14]
[359929391,1746431441834,-501.90950057,0.00035616,14]
[359929392,1746431441843,-467.43,0.00035616,14]
[359929393,1746431441852,-400.0,0.00035616,14]
[359929394,1746431441862,-400.0,0.00035616,14]
[359929395,1746431441872,-400.0,0.00035616,14]
[359929396,1746431441882,-151.0,0.00035616,14]
[359929397,1746431441891,-400.0,0.00035616,14]
[359929398,1746431441901,-156.407797,0.00035616,14]
[359929399,1746431441911,-400.0,0.00035616,14]
[359929400,1746431441921,-478.31,0.00035616,14]
[359929401,1746431441930,-400.0,0.00035616,14]
[359929402,1746431441939,-400.0,0.00035616,14]
[359929403,1746431441949,-151.0,0.00035616,14]
[359929404,1746431441959,-400.0,0.00035616,14]
[359929405,1746431441968,-400.0,0.00035616,14]
[359929406,1746431441978,-400.0,0.00035616,14]
[359929407,1746431441988,-352.80040529,0.00035616,14]
[359929408,1746431441997,-400.0,0.00035616,14]
[359929409,1746431442007,-400.0,0.00035616,14]
[359929410,1746431442016,-152.04912064,0.00035616,14]
[359929411,1746431442026,-400.0,0.00035616,14]
[359929412,1746431442035,-400.0,0.00035616,14]
[359929413,1746431442045,-400.0,0.00035616,14]
[359929414,1746431442054,-400.0,0.00035616,14]
[359929415,1746431442063,-400.0,0.00035616,14]
[359929416,1746431442073,-400.0,0.00035616,14]
[359929417,1746431442083,-400.0,0.00035616,14]
[359929418,1746431442092,-400.0,0.00035616,14]
[359929419,1746431442102,-407.99626087,0.00035616,14]
[359929420,1746431442111,-400.0,0.00035616,14]
[359929421,1746431442121,-400.0,0.00035616,14]
[359929422,1746431442130,-400.0,0.00035616,14]
[359929423,1746431442140,-400.0,0.00035616,14]
[359929424,1746431442150,-400.22367334,0.00035616,14]
[359929425,1746431442159,-444.04,0.00035616,14]
[359929426,1746431442169,-400.0,0.00035616,14]
[359929427,1746431442178,-400.0,0.00035616,14]
[359929428,1746431442187,-400.0,0.00035616,14]
[359929429,1746431442196,-518.59,0.00035616,14]
[359929430,1746431442206,-400.0,0.00035616,14]
[359929431,1746431442215,-400.0,0.00035616,14]
[359929432,1746431442224,-1222.27,0.00035616,14]
[359929433,1746431442233,-151.0,0.00035616,14]
[359929434,1746431442242,-400.0,0.00035616,14]
[359929435,1746431442251,-1484.31,0.00035616,14]
[359929436,1746431442260,-400.0,0.00035616,14]
[359929437,1746431442270,-154.402205,0.00035616,14]
[359929438,1746431442279,-1181.94,0.00035616,14]
[359929439,1746431442288,-400.0,0.00035616,14]
[359929440,1746431442298,-400.0,0.00035616,14]
[359929441,1746431442306,-400.0,0.00035616,14]
[359929442,1746431442315,-151.0,0.00035616,14]
[359929443,1746431442325,-400.0,0.00035616,14]
[359929444,1746431442338,-151.0,0.00035616,14]
[359929445,1746431442347,-151.0,0.00035616,14]
[359929446,1746431442357,-400.0,0.00035616,14]